bitfinex-derivatives/quotes_BTCF0:USTF0_20250327
["timestamp","ask_amount","ask_price","bid_price","bid_amount"]
[1743091887376,8e-05,87150.0,87149.0,0.1147781]
[1743091887575,0.00068001,87150.0,87149.0,0.1154981]
[1743091888569,8e-05,87150.0,87149.0,0.1154981]
[1743091889368,0.00084,87150.0,87149.0,0.1154981]
[1743091889872,0.00184,87150.0,87149.0,0.1154981]
[1743091890663,0.00484,87150.0,87149.0,0.1154981]
[1743091892874,0.1196168,87150.0,87149.0,0.00072]
[1743091893171,0.2512168,87150.0,87149.0,0.00072]
[1743091893584,0.13644,87150.0,87149.0,0.1154981]
[1743091893982,0.13644,87150.0,87149.0,0.2461981]
[1743091894779,0.2512168,87150.0,87149.0,0.2461981]
[1743091894978,0.13644,87150.0,87149.0,0.2461981]
[1743091895380,0.2482168,87150.0,87149.0,0.2461981]
[1743091895571,0.2492168,87150.0,87149.0,0.2461981]
[1743091895978,0.06764,87150.0,87149.0,0.2461981]
[1743091896275,0.06756,87150.0,87149.0,0.2461981]
[1743091896471,0.002,87150.0,87149.0,0.2461981]
[1743091896871,0.0028,87150.0,87149.0,0.2461981]
[1743091897272,0.002,87150.0,87149.0,0.2461981]
[1743091897868,0.0652,87151.0,87150.0,0.1147768]
[1743091898074,0.18057551,87151.0,87150.0,0.1154968]
[1743091898276,0.18057551,87151.0,87150.0,0.2433968]
[1743091899980,0.00060001,87151.0,87150.0,0.2433968]
[1743091900186,0.1147755,87151.0,87150.0,0.2433968]
[1743091900382,0.1797955,87151.0,87150.0,0.2433968]
[1743091900986,0.1777955,87151.0,87150.0,0.2433968]
[1743091901289,0.1797955,87151.0,87150.0,0.2433968]
[1743091901474,0.06502,87151.0,87150.0,0.2433968]
[1743091901677,0.0643,87151.0,87150.0,0.2433968]
[1743091901878,0.06502,87151.0,87150.0,0.2433968]
[1743091902077,0.12922,87151.0,87150.0,0.2433968]
[1743091902479,0.2439955,87151.0,87150.0,0.2433968]
[1743091903284,0.2419955,87151.0,87150.0,0.2433968]
[1743091903482,0.2429955,87151.0,87150.0,0.2433968]
[1743091904486,0.3069955,87151.0,87150.0,0.2433968]
[1743091904782,0.3069955,87151.0,87150.0,0.1154968]
[1743091907289,0.3069955,87151.0,87150.0,0.2406968]
[1743091909182,0.3069955,87151.0,87150.0,0.1779968]
[1743091910582,0.06502,87151.0,87150.0,0.2436968]
[1743091910788,0.0643,87151.0,87150.0,0.2436968]
[1743091911088,0.06502,87151.0,87150.0,0.2436968]
[1743091911694,0.00272,87151.0,87150.0,0.2436968]
[1743091912691,0.00072,87151.0,87150.0,0.2456968]
[1743091912884,0.1147755,87151.0,87150.0,0.2456968]
[1743091913089,0.1154955,87151.0,87150.0,0.00272]
[1743091913293,0.2444955,87151.0,87150.0,0.00172]
[1743091913600,0.2454955,87151.0,87150.0,0.00172]
[1743091914096,0.2454955,87151.0,87150.0,0.1164968]
[1743091915092,0.2454955,87151.0,87150.0,0.1789968]
[1743091915293,0.2454955,87151.0,87150.0,0.1779968]
[1743091915494,0.2464955,87151.0,87150.0,0.1779968]
[1743091915798,0.2484955,87151.0,87150.0,0.1779968]
[1743091918597,0.2484955,87151.0,87150.0,0.2439968]
[1743091918792,0.06922,87151.0,87150.0,0.2439968]
[1743091918993,0.06922,87151.0,87150.0,0.3056968]
[1743091919698,0.06822,87151.0,87150.0,0.3056968]
[1743091919999,0.06922,87151.0,87150.0,0.3056968]
[1743091920397,0.00372,87151.0,87150.0,0.3056968]
[1743091920587,0.17101348,87155.0,87154.0,0.1147715]
[1743091920790,0.00017212,87156.0,87155.0,0.1147702]
[1743091921094,0.17101348,87159.0,87158.0,0.1147662]
[1743091921294,0.17101348,87159.0,87158.0,0.1154862]
[1743091921295,0.17173348,87159.0,87158.0,0.1154862]
[1743091921499,0.17173348,87159.0,87158.0,0.2431862]
[1743091922694,0.28749838,87159.0,87158.0,0.2431862]
[1743091923089,0.1164849,87159.0,87158.0,0.2431862]
[1743091923487,0.00472,87159.0,87158.0,0.2431862]
[1743091923692,0.004,87159.0,87158.0,0.2431862]
[1743091925699,0.1187649,87159.0,87158.0,0.3601062]
[1743091926093,0.1808649,87159.0,87158.0,0.3601062]
[1743091926502,0.1808649,87159.0,87158.0,0.2431862]
[1743091926699,0.1808649,87159.0,87158.0,0.12842]
[1743091926905,0.1808649,87159.0,87158.0,0.2431862]
[1743091927204,0.2403649,87159.0,87158.0,0.2431862]
[1743091927608,0.1256,87159.0,87158.0,0.2431862]
[1743091929603,0.1248,87159.0,87158.0,0.2431862]
[1743091929903,0.12552,87159.0,87158.0,0.2431862]
[1743091930302,0.1248,87159.0,87158.0,0.2431862]
[1743091930700,0.12540001,87159.0,87158.0,0.2431862]
[1743091932107,0.24016491,87159.0,87158.0,0.2431862]
[1743091932307,0.24016491,87159.0,87158.0,0.00072]
[1743091932507,0.1147781,87149.0,87148.0,0.1147789]
[1743091932696,0.1147781,87149.0,87148.0,0.1154989]
[1743091933103,0.1154981,87149.0,87148.0,0.1742989]
[1743091933302,0.2396981,87149.0,87148.0,0.1742989]
[1743091933600,0.12492,87149.0,87148.0,0.1742989]
[1743091933796,0.12584,87149.0,87148.0,0.2367989]
[1743091934002,0.1252,87149.0,87148.0,0.2367989]
[1743091934303,0.2406981,87149.0,87148.0,0.1154989]
[1743091934805,0.2406981,87149.0,87148.0,0.1164989]
[1743091935005,0.2406981,87149.0,87148.0,0.1752989]
[1743091936811,0.2406981,87149.0,87148.0,0.06052]
[1743091937005,0.2406981,87149.0,87148.0,0.1164994]
[1743091937202,0.2406981,87149.0,87148.0,0.00172]
[1743091937602,0.2406981,87149.0,87148.0,0.1777994]
[1743091938001,0.3575781,87149.0,87148.0,0.00172]
[1743091938200,0.1147899,87140.0,87139.0,0.20628243]
[1743091938506,0.1154299,87140.0,87139.0,0.20688243]
[1743091938708,0.2916299,87140.0,87139.0,0.11556342]
[1743091939411,0.2916299,87140.0,87139.0,0.11917212]
[1743091939609,0.2306299,87140.0,87139.0,0.23596342]
[1743091939806,0.2306299,87140.0,87139.0,0.12117212]
[1743091940508,0.2306299,87140.0,87139.0,0.23596342]
[1743091940714,0.2306299,87140.0,87139.0,0.12117212]
[1743091941310,0.2306299,87140.0,87139.0,0.00577212]
[1743091942015,0.2306299,87140.0,87139.0,0.12056342]
[1743091942418,0.00064,87140.0,87139.0,0.12056342]
[1743091942607,8e-05,87141.0,87140.0,0.1147899]
[1743091942903,0.0609,87144.0,87143.0,0.114786]
[1743091943106,0.00025212,87148.0,87147.0,0.1147807]
[1743091943309,0.00017212,87148.0,87147.0,0.1741607]
[1743091943512,0.00017212,87148.0,87147.0,0.2336607]
[1743091943903,0.0573773,87167.0,87147.0,0.11888]
[1743091944211,0.1182792,87164.0,87163.0,0.4755597]
[1743091944407,0.1182792,87164.0,87163.0,0.66719236]
[1743091945112,0.0609,87164.0,87163.0,0.66719236]
[1743091945711,0.0629,87164.0,87163.0,0.66719236]
[1743091946316,0.002,87164.0,87163.0,0.66719236]
[1743091946812,0.1167583,87164.0,87163.0,0.66719236]
[1743091947118,0.006,87164.0,87163.0,0.66719236]
[1743091947318,0.1207583,87164.0,87163.0,0.66719236]
[1743091947518,0.1213983,87164.0,87163.0,0.66719236]
[1743091947715,0.00664,87164.0,87163.0,0.66719236]
[1743091947908,0.006,87164.0,87163.0,0.66719236]
[1743091949312,0.00664,87164.0,87163.0,0.66719236]
[1743091949511,0.0664,87164.0,87163.0,0.66719236]
[1743091949714,0.006,87164.0,87163.0,0.66719236]
[1743091950818,8e-05,87170.0,87166.0,0.0573775]
[1743091951010,0.4181581,87196.0,87166.0,0.0573775]
[1743091951011,0.0604,87178.0,87169.0,0.4181752]
[1743091951216,0.0604,87178.0,87177.0,0.1147412]
[1743091951416,0.0604,87178.0,87177.0,0.1153812]
[1743091951616,0.06104,87178.0,87177.0,0.1153812]
[1743091951823,0.0604,87178.0,87177.0,0.1153812]
[1743091952016,0.0604,87178.0,87177.0,0.2343812]
[1743091952519,0.06104,87178.0,87177.0,0.2343812]
[1743091953126,0.06604,87178.0,87177.0,0.2353812]
[1743091953328,0.0654,87178.0,87177.0,0.2353812]
[1743091953717,0.06608,87178.0,87177.0,0.2353812]
[1743091953918,0.07108,87178.0,87177.0,0.24413394]
[1743091955226,0.07108,87178.0,87177.0,0.2353812]
[1743091958837,0.13048,87178.0,87177.0,0.24409463]
[1743091960427,0.1298,87178.0,87177.0,0.24409463]
[1743091960828,0.13044,87178.0,87177.0,0.24409463]
[1743091961733,0.13044,87178.0,87177.0,0.2353812]
[1743091963644,0.13044,87178.0,87177.0,0.2441566]
[1743091965031,0.2451799,87178.0,87177.0,0.1163812]
[1743091967345,0.3619399,87178.0,87177.0,0.00164]
[1743091968448,0.3619399,87178.0,87177.0,0.1163812]
[1743091970449,0.3619399,87178.0,87177.0,0.00164]
[1743091971250,0.1147465,87173.0,87172.0,0.3608]
[1743091971450,0.1147504,87170.0,87164.0,0.3608]
[1743091971752,0.1147504,87170.0,87169.0,0.00077212]
[1743091971753,0.1155904,87170.0,87169.0,0.00077212]
[1743091971949,0.2321904,87170.0,87169.0,0.00077212]
[1743091972454,0.5929904,87170.0,87169.0,0.00077212]
[1743091972655,0.1147662,87158.0,87157.0,0.3608]
[1743091972857,0.1147715,87154.0,87149.0,0.27480774]
[1743091973054,0.1156915,87154.0,87153.0,0.2069858]
[1743091973256,0.2355915,87154.0,87153.0,0.2069858]
[1743091973756,0.5963915,87154.0,87153.0,0.2069858]
[1743091974061,0.5963915,87154.0,87153.0,0.00088]
[1743091974357,0.1147755,87151.0,87150.0,0.27480774]
[1743091974550,0.1156955,87151.0,87150.0,0.27548774]
[1743091975850,0.13564773,87151.0,87150.0,1e-08]
[1743091976154,0.114782,87146.0,87145.0,0.3436818]
[1743091976356,0.114782,87146.0,87145.0,0.3448018]
[1743091976552,0.11590201,87146.0,87145.0,0.3448018]
[1743091976756,0.23140201,87146.0,87145.0,0.3448018]
[1743091977258,0.23140201,87146.0,87145.0,0.00329212]
[1743091977457,0.34812201,87146.0,87145.0,0.00329212]
[1743091977756,0.34812201,87146.0,87145.0,0.00217212]
[1743091977952,0.34812201,87146.0,87145.0,0.00277212]
[1743091978554,0.34812201,87146.0,87145.0,0.00217212]
[1743091978759,0.34812201,87146.0,87145.0,0.00277212]
[1743091982455,0.70892201,87146.0,87145.0,0.00277212]
[1743091982650,0.70892201,87146.0,87145.0,0.00217212]
[1743091983051,0.34812201,87146.0,87145.0,0.00281212]
[1743091984053,0.23140201,87146.0,87145.0,0.11759552]
[1743091984553,0.00112001,87146.0,87145.0,0.23379552]
[1743091984758,0.0622,87157.0,87145.0,0.23379552]
[1743091984759,0.1721569,87155.0,87154.0,0.1147651]
[1743091985065,0.17327691,87155.0,87154.0,0.2370851]
[1743091985756,0.17327691,87155.0,87154.0,0.24879659]
[1743091985956,0.17527691,87155.0,87154.0,0.24879659]
[1743091986662,0.17527691,87155.0,87154.0,0.60959659]
[1743091987661,0.17527691,87155.0,87154.0,0.12232]
[1743091988565,0.23197691,87155.0,87154.0,0.12232]
[1743091988764,0.23197691,87155.0,87154.0,0.1212]
[1743091988967,0.23197691,87155.0,87154.0,0.2366115]
[1743091991158,0.23197691,87155.0,87154.0,0.12184]
[1743091992274,0.23197691,87155.0,87154.0,0.2366115]
[1743091993166,0.23197691,87155.0,87154.0,0.05924]
[1743091993364,0.1147807,87147.0,87145.0,0.00017212]
[1743091993562,0.0573949,87140.0,87137.0,0.1183]
[1743091993768,0.0573949,87140.0,87137.0,0.0586]
[1743091993769,0.1147926,87138.0,87137.0,0.0586]
[1743091993968,0.1147926,87138.0,87137.0,0.05928]
[1743091994174,0.23183261,87138.0,87137.0,0.0586]
[1743091994678,0.23183261,87138.0,87137.0,0.0592]
[1743091995971,0.23183261,87138.0,87137.0,0.0006]
[1743091996174,0.1147965,87135.0,87134.0,0.20579225]
[1743091996369,0.11603651,87135.0,87134.0,0.20707225]
[1743091996578,0.23183651,87135.0,87134.0,0.20707225]
[1743091997580,0.23183651,87135.0,87134.0,0.21007225]
[1743091998367,0.23183651,87135.0,87134.0,0.00628]
[1743091998571,0.23183651,87135.0,87134.0,0.005]
[1743092000478,0.60112964,87135.0,87134.0,0.005]
[1743092003873,0.1148031,87130.0,87123.0,0.0564]
[1743092004175,0.11604311,87130.0,87124.0,0.0567]
[1743092004371,0.22794311,87130.0,87124.0,0.0567]
[1743092005179,0.22794311,87130.0,87129.0,0.00317212]
[1743092005371,0.23979492,87130.0,87129.0,0.00517212]
[1743092014884,0.1148097,87125.0,87124.0,0.0567]
[1743092015088,0.1148334,87107.0,87098.0,0.7771]
[1743092015279,0.1148334,87107.0,87106.0,0.36144]
[1743092015477,0.11607341,87107.0,87106.0,0.36144]
[1743092015685,0.17227341,87107.0,87106.0,0.36144]
[1743092016482,0.23087341,87107.0,87106.0,0.36144]
[1743092017381,0.60320801,87107.0,87106.0,0.00064]
[1743092017582,0.1148374,87104.0,87103.0,0.0579]
[1743092017783,0.1161174,87104.0,87103.0,0.05854]
[1743092017982,0.2376174,87104.0,87103.0,0.05854]
[1743092019382,0.24355249,87104.0,87103.0,0.05854]
[1743092020692,0.24355249,87104.0,87103.0,0.00064]
[1743092020895,0.1148479,87096.0,87090.0,0.11328]
[1743092021191,0.59970299,87096.0,87095.0,0.00064]
[1743092021493,0.1148545,87091.0,87090.0,0.1132]
[1743092021683,0.1163745,87091.0,87090.0,0.1132]
[1743092021881,0.23450959,87091.0,87090.0,0.1132]
[1743092022892,0.1148638,87084.0,87083.0,0.00056]
[1743092023191,0.59971889,87084.0,87083.0,0.00116]
[1743092023395,0.71191889,87084.0,87083.0,0.00116]
[1743092023593,0.71191889,87084.0,87083.0,0.11784]
[1743092024183,0.7059838,87084.0,87083.0,0.06024]
[1743092024386,0.7059838,87084.0,87083.0,0.00124]
[1743092024587,0.82081611,87084.0,87083.0,0.00124]
[1743092024788,0.82081611,87084.0,87083.0,0.00056]
[1743092024989,0.82081611,87084.0,87083.0,0.00208]
[1743092026391,0.7059838,87084.0,87083.0,0.00208]
[1743092026597,0.7059838,87084.0,87083.0,0.11788]
[1743092026898,0.7059838,87084.0,87083.0,0.11636]
[1743092030398,0.5321038,87084.0,87083.0,0.11636]
[1743092030603,0.4771038,87084.0,87083.0,0.17786]
[1743092030903,0.36224,87084.0,87083.0,0.2933651]
[1743092031098,0.4771038,87084.0,87083.0,0.1785]
[1743092031800,0.4771038,87084.0,87083.0,0.17786]
[1743092032398,0.1163038,87084.0,87083.0,0.6535251]
[1743092032702,0.11668,87089.0,87083.0,0.6535251]
[1743092032703,0.1148638,87086.0,87083.0,0.5393]
[1743092032892,0.0574312,87086.0,87085.0,0.1148588]
[1743092033092,0.0584312,87086.0,87085.0,0.1148588]
[1743092033300,0.0584312,87086.0,87085.0,0.1154588]
[1743092033796,0.001,87086.0,87085.0,0.1745588]
[1743092033994,0.001,87086.0,87085.0,0.2359588]
[1743092034502,0.1158611,87086.0,87085.0,0.2374788]
[1743092034701,0.0574289,87089.0,87088.0,0.1148585]
[1743092034898,0.0574289,87089.0,87088.0,0.1154585]
[1743092034899,0.0584289,87089.0,87088.0,0.1154585]
[1743092035093,0.0584289,87089.0,87088.0,0.2359585]
[1743092035295,0.0574289,87089.0,87088.0,0.2359585]
[1743092036497,0.00017222,87092.0,87091.0,0.1148545]
[1743092036700,0.00017222,87092.0,87091.0,0.1154545]
[1743092036701,0.00117222,87092.0,87091.0,0.1154545]
[1743092037002,0.11502542,87092.0,87091.0,0.1154545]
[1743092037195,0.11602542,87092.0,87091.0,0.2327545]
[1743092038199,0.11902542,87092.0,87091.0,0.2327545]
[1743092038799,0.00417222,87092.0,87091.0,0.2327545]
[1743092038997,0.00317222,87092.0,87091.0,0.2327545]
[1743092039198,0.114843,87100.0,87099.0,0.1722626]
[1743092039501,0.001,87100.0,87099.0,0.5336626]
[1743092039694,0.0574131,87113.0,87111.0,0.1148268]
[1743092039695,0.1722408,87112.0,87111.0,0.1148268]
[1743092039896,0.1722408,87112.0,87111.0,0.48783241]
[1743092040095,0.1729208,87112.0,87111.0,0.48783241]
[1743092040297,0.1729208,87112.0,87111.0,0.37300561]
[1743092040498,0.1729208,87112.0,87111.0,0.48783381]
[1743092041106,0.1729208,87112.0,87111.0,0.4763082]
[1743092041307,0.1779208,87112.0,87111.0,0.4763082]
[1743092041503,0.1829208,87112.0,87111.0,0.4763082]
[1743092042208,0.1829208,87112.0,87111.0,0.48799758]
[1743092044407,0.1829208,87112.0,87111.0,0.4763082]
[1743092044607,0.1829208,87112.0,87111.0,0.00068]
[1743092044810,0.2957208,87112.0,87111.0,0.00068]
[1743092045500,0.66789479,87112.0,87111.0,0.00068]
[1743092045698,0.1148374,87104.0,87099.0,0.3608]
[1743092046008,0.1155174,87104.0,87103.0,0.11585092]
[1743092046207,0.2293174,87104.0,87103.0,0.11561092]
[1743092047307,0.2383174,87104.0,87103.0,0.11561092]
[1743092047607,0.2383174,87104.0,87103.0,0.00077222]
[1743092048508,0.5991174,87104.0,87103.0,0.00077222]
[1743092048703,0.1148558,87090.0,87089.0,0.20579225]
[1743092048903,0.11573581,87090.0,87089.0,0.20639225]
[1743092049309,0.22873581,87090.0,87089.0,0.20639225]
[1743092050405,0.23073581,87090.0,87089.0,0.20639225]
[1743092052810,0.23073581,87090.0,87089.0,0.0006]
[1743092053007,0.23073581,87090.0,87089.0,0.1154572]
[1743092053209,0.11773581,87090.0,87089.0,0.1154572]
[1743092053705,0.11773581,87090.0,87089.0,0.0006]
[1743092053900,0.11773581,87090.0,87089.0,0.1154572]
[1743092054213,0.11773581,87090.0,87089.0,0.2331572]
[1743092054908,0.11773581,87090.0,87089.0,0.1183]
[1743092055412,0.23283581,87090.0,87089.0,0.1183]
[1743092055606,0.23283581,87090.0,87089.0,0.2331572]
[1743092057013,0.00288001,87090.0,87089.0,0.2331572]
[1743092057209,0.002,87090.0,87089.0,0.5939572]
[1743092058815,0.1168558,87090.0,87089.0,0.5939572]
[1743092059116,0.1168558,87090.0,87089.0,0.7105572]
[1743092062216,0.002,87090.0,87089.0,0.7105572]
[1743092063115,0.002,87090.0,87089.0,0.5939572]
[1743092068620,0.0574135,87112.0,87089.0,0.4791]
[1743092068826,0.0584,87106.0,87105.0,0.1148361]
[1743092069008,0.17411471,87106.0,87105.0,0.4756361]
[1743092069213,0.17411471,87106.0,87105.0,0.4762761]
[1743092069414,0.17411471,87106.0,87105.0,0.5313761]
[1743092069818,0.22921471,87106.0,87105.0,0.5313761]
[1743092070019,0.22921471,87106.0,87105.0,0.5432056]
[1743092070211,0.22921471,87106.0,87105.0,0.05574]
[1743092070520,0.22921471,87106.0,87105.0,0.1154761]
[1743092070714,0.23821471,87106.0,87105.0,0.00068]
[1743092071422,0.23821471,87106.0,87105.0,0.1155161]
[1743092071725,0.23821471,87106.0,87105.0,0.00068]
[1743092071919,0.23821471,87106.0,87105.0,0.1155161]
[1743092075327,0.23821471,87106.0,87105.0,0.00068]
[1743092075825,0.23821471,87106.0,87105.0,0.1155161]
[1743092076412,0.23821471,87106.0,87105.0,0.00068]
[1743092076922,0.1722574,87104.0,87103.0,0.1148383]
[1743092077122,0.17313741,87104.0,87103.0,0.1154383]
[1743092077321,0.18470127,87104.0,87103.0,0.1154383]
[1743092077527,0.30200127,87104.0,87103.0,0.1154383]
[1743092077828,0.30200127,87104.0,87103.0,0.0006]
[1743092078029,0.29043741,87104.0,87103.0,0.0006]
[1743092078717,0.29043741,87104.0,87103.0,0.1154387]
[1743092078918,0.29543741,87104.0,87103.0,0.1154387]
[1743092079513,0.29943741,87104.0,87103.0,0.1154387]
[1743092080122,0.29943741,87104.0,87103.0,0.1743387]
[1743092082215,0.29943741,87104.0,87103.0,0.1192]
[1743092082416,0.29943741,87104.0,87103.0,0.0006]
[1743092082822,0.29943741,87104.0,87103.0,0.1154387]
[1743092085029,0.29943741,87104.0,87103.0,0.2296387]
[1743092085533,0.18459871,87104.0,87103.0,0.2296387]
[1743092087332,0.18459871,87104.0,87103.0,0.1148]
[1743092087632,0.24469871,87104.0,87103.0,0.0006]
[1743092088127,0.24469871,87104.0,87103.0,0.1154387]
[1743092089329,0.24469871,87104.0,87103.0,0.0006]
[1743092096139,0.114844,87099.0,87098.0,0.11618]
[1743092096335,0.11572401,87099.0,87098.0,0.11678]
[1743092096539,0.22802401,87099.0,87098.0,0.11678]
[1743092096728,0.22802401,87099.0,87098.0,0.2316253]
[1743092096934,0.22802401,87099.0,87098.0,0.2875253]
[1743092096935,0.11572401,87099.0,87098.0,0.2875253]
[1743092097641,0.00088001,87099.0,87098.0,0.2875253]
[1743092097840,0.1198374,87104.0,87103.0,0.1148387]
[1743092098034,0.1148374,87104.0,87103.0,0.8925387]
[1743092098242,0.11571741,87104.0,87103.0,1.0085387]
[1743092099234,0.12071741,87104.0,87103.0,1.0085387]
[1743092099941,0.12471741,87104.0,87103.0,1.0085387]
[1743092100535,0.23901741,87104.0,87103.0,1.0085387]
[1743092101345,0.12471741,87104.0,87103.0,1.0085387]
[1743092102645,0.1238374,87104.0,87103.0,1.0085387]
[1743092102849,0.009,87104.0,87103.0,1.0085387]
[1743092103539,0.1238374,87104.0,87103.0,1.0085387]
[1743092104052,0.1238374,87104.0,87103.0,0.0006]
[1743092104238,0.2487684,87104.0,87103.0,0.0006]
[1743092104844,0.23711741,87104.0,87103.0,0.0006]
[1743092105150,0.23711741,87104.0,87103.0,0.1154387]
[1743092105445,0.24843466,87104.0,87103.0,0.1154387]
[1743092105839,0.24843466,87104.0,87103.0,0.0006]
[1743092106039,0.23711741,87104.0,87103.0,0.1154387]
[1743092106437,0.23711741,87104.0,87103.0,0.1743387]
[1743092107849,0.23711741,87104.0,87103.0,0.0595]
[1743092108241,0.23711741,87104.0,87103.0,0.0006]
[1743092108546,0.1148413,87101.0,87100.0,8e-05]
[1743092108751,0.11572131,87101.0,87100.0,0.00068]
[1743092108942,0.28892131,87101.0,87100.0,0.1155227]
[1743092109344,0.11408001,87101.0,87100.0,0.2301227]
[1743092109538,0.00088001,87101.0,87100.0,0.2900227]
[1743092109755,0.1148392,87103.0,87102.0,0.0574199]
[1743092109939,0.11170951,87104.0,87103.0,0.1704387]
[1743092110141,0.10862951,87104.0,87103.0,0.7628587]
[1743092110352,0.17060153,87113.0,87112.0,0.1148268]
[1743092110544,0.17120154,87113.0,87112.0,0.4762268]
[1743092110743,0.17120154,87113.0,87112.0,0.6507268]
[1743092110944,0.0008001,87117.0,87114.0,0.0574114]
[1743092110945,0.115703,87117.0,87114.0,0.0574114]
[1743092111153,0.1738331,87117.0,87116.0,0.1148216]
[1743092111350,0.0590102,87117.0,87116.0,0.1155816]
[1743092111653,0.0590102,87117.0,87116.0,0.2301816]
[1743092111856,0.0590102,87117.0,87116.0,0.24165314]
[1743092112347,0.20472184,87118.0,87117.0,0.1148202]
[1743092112547,0.0574828,87129.0,87120.0,0.1148163]
[1743092112758,0.0554,87131.0,87124.0,0.4182051]
[1743092112941,0.0574022,87130.0,87127.0,0.1148071]
[1743092113140,0.1318458,87128.0,87127.0,0.4768471]
[1743092113354,0.13308581,87128.0,87127.0,0.5903471]
[1743092113758,0.1318458,87128.0,87127.0,0.5903471]
[1743092113960,0.13244581,87128.0,87127.0,0.5903471]
[1743092114164,0.13244581,87128.0,87127.0,0.59904719]
[1743092114455,0.02164001,87128.0,87127.0,0.59904719]
[1743092114655,0.1164,87150.0,87132.0,0.0573999]
[1743092114855,0.1147851,87144.0,87143.0,0.1147847]
[1743092115051,0.1148651,87144.0,87143.0,0.4755847]
[1743092115253,0.1745051,87144.0,87143.0,0.4770247]
[1743092115555,0.1745051,87144.0,87143.0,0.5909247]
[1743092115755,0.1744251,87144.0,87143.0,0.5909247]
[1743092116546,0.1744251,87144.0,87143.0,0.60228033]
[1743092117560,0.2392251,87144.0,87143.0,0.60228033]
[1743092117762,0.2442251,87144.0,87143.0,0.60228033]
[1743092119064,0.01044,87144.0,87143.0,0.60228033]
[1743092119255,0.009,87144.0,87143.0,0.60228033]
[1743092119859,0.1237847,87144.0,87143.0,0.5909247]
[1743092120065,0.1793847,87144.0,87143.0,0.477026]
[1743092120265,0.1808247,87144.0,87143.0,0.477026]
[1743092120662,0.1768247,87144.0,87143.0,0.477026]
[1743092120865,0.2320247,87144.0,87143.0,0.477026]
[1743092121164,0.2370247,87144.0,87143.0,0.477026]
[1743092122167,0.2370247,87144.0,87143.0,0.36224]
[1743092124262,0.2370247,87144.0,87143.0,0.00144]
[1743092124460,0.1147939,87138.0,87137.0,0.1147932]
[1743092124661,0.1162339,87138.0,87137.0,0.2287732]
[1743092124966,0.2328339,87138.0,87137.0,0.2287732]
[1743092125658,0.2378339,87138.0,87137.0,0.2287732]
[1743092126766,0.2378339,87138.0,87137.0,0.11398]
[1743092126966,0.2428339,87138.0,87137.0,0.00148]
[1743092130959,0.2428339,87138.0,87137.0,0.1162739]
[1743092131162,0.12804,87138.0,87137.0,0.1162739]
[1743092131463,0.00016,87150.0,87143.0,0.0573926]
[1743092131669,0.00016,87150.0,87148.0,0.4755794]
[1743092131864,0.05755909,87152.0,87151.0,0.1147755]
[1743092132066,0.05755909,87152.0,87151.0,0.4755755]
[1743092132269,0.17233689,87152.0,87151.0,0.4774155]
[1743092132469,0.17233689,87152.0,87151.0,0.4755755]
[1743092132672,0.17233689,87152.0,87151.0,0.5354]
[1743092133471,0.17233689,87152.0,87151.0,0.4148]
[1743092134176,0.17233689,87152.0,87151.0,0.5295755]
[1743092134373,0.17233689,87152.0,87151.0,0.5897755]
[1743092134571,0.17733689,87152.0,87151.0,0.5897755]
[1743092134870,0.17733689,87152.0,87151.0,0.475]
[1743092135075,0.17233689,87152.0,87151.0,0.475]
[1743092135379,0.17433689,87152.0,87151.0,0.475]
[1743092135565,0.17433689,87152.0,87151.0,0.3608]
[1743092136166,0.28903689,87152.0,87151.0,0.3608]
[1743092137573,0.28903689,87152.0,87151.0,0.36268]
[1743092138569,0.28903689,87152.0,87151.0,0.37442708]
[1743092139166,0.17425909,87152.0,87151.0,0.60750258]
[1743092139666,0.00217189,87152.0,87151.0,0.60750258]
[1743092139866,0.00217189,87152.0,87151.0,0.96830258]
[1743092141266,0.11694599,87152.0,87151.0,0.96830258]
[1743092141967,0.23544599,87152.0,87151.0,0.96830258]
[1743092142164,0.23544599,87152.0,87151.0,0.60750258]
[1743092144974,0.11694599,87152.0,87151.0,0.60750258]
[1743092148583,0.00217189,87152.0,87151.0,0.60750258]
[1743092148777,0.11694599,87152.0,87151.0,0.60750258]
[1743092149884,0.00217189,87152.0,87151.0,0.60750258]
[1743092151784,0.056,87167.0,87166.0,0.1147557]
[1743092151989,0.1149136,87168.0,87167.0,0.1147544]
[1743092152188,0.1147536,87168.0,87167.0,0.1753944]
[1743092152487,0.1147536,87168.0,87167.0,0.2307944]
[1743092152678,0.1147536,87168.0,87167.0,0.24239369]
[1743092153781,0.2312536,87168.0,87167.0,0.24239369]
[1743092154087,0.2312536,87168.0,87167.0,0.2307944]
[1743092154488,0.2332536,87168.0,87167.0,0.2307944]
[1743092155185,0.1185,87168.0,87167.0,0.2307944]
[1743092155384,0.1167531,87168.0,87167.0,0.2307944]
[1743092155991,0.2316531,87168.0,87167.0,0.2307944]
[1743092156778,0.002,87168.0,87167.0,0.2307944]
[1743092157082,0.1149,87174.0,87173.0,0.1147465]
[1743092157387,0.1721125,87178.0,87177.0,0.1147399]
[1743092157690,0.1721125,87178.0,87177.0,0.1165799]
[1743092157887,0.1721125,87178.0,87177.0,0.1753799]
[1743092158491,0.1741125,87178.0,87177.0,0.18717768]
[1743092158687,0.1741125,87178.0,87177.0,0.24657768]
[1743092159082,0.2315125,87178.0,87177.0,0.24657768]
[1743092161897,0.0594,87178.0,87177.0,0.24657768]
[1743092162190,0.0594,87178.0,87177.0,0.60737768]
[1743092162393,0.0574455,87185.0,87178.0,0.0573695]
[1743092162394,8e-05,87185.0,87178.0,0.0573695]
[1743092162584,0.1147234,87191.0,87186.0,0.1147294]
[1743092162886,0.1739217,87192.0,87191.0,0.1147228]
[1743092163093,0.1739217,87192.0,87191.0,0.4773628]
[1743092163286,0.1,87200.0,87194.0,0.0573587]
[1743092163492,0.1720555,87209.0,87208.0,0.1720434]
[1743092163791,0.1720555,87209.0,87208.0,0.36264]
[1743092164804,0.1720555,87209.0,87208.0,0.00184]
[1743092165011,0.12750316,87211.0,87200.0,0.00017201]
[1743092165012,0.1147096,87201.0,87200.0,0.00017201]
[1743092165214,0.1147096,87201.0,87200.0,0.00201201]
[1743092165725,0.1147096,87201.0,87200.0,0.17732301]
[1743092165914,0.1147096,87201.0,87200.0,0.23182301]
[1743092166619,0.1750096,87201.0,87200.0,0.06261201]
[1743092166814,0.1750096,87201.0,87200.0,0.17732301]
[1743092167011,0.1750096,87201.0,87200.0,0.06261201]
[1743092167624,0.1750096,87201.0,87200.0,0.00201201]
[1743092173012,0.1750096,87201.0,87200.0,0.05871201]
[1743092173309,0.1147083,87202.0,87201.0,0.0573548]
[1743092173602,0.1147083,87202.0,87201.0,0.0591948]
[1743092173899,0.1147083,87202.0,87201.0,0.1685948]
[1743092174101,0.1730083,87202.0,87201.0,0.1685948]
[1743092174900,0.1147083,87202.0,87201.0,0.1685948]
[1743092175296,0.1730083,87202.0,87201.0,0.1685948]